[Event "76th Montenegro Championship 2024"]
[Site "Podgorica"]
[Date "2024.02.09"]
[Round "4.1"]
[White "Smirnov, Artem"]
[Black "Kadric, Denis"]
[Result "1/2-1/2"]
[ECO "C41"]
[WhiteElo "2406"]
[BlackElo "2584"]
[Annotator "TA"]
[PlyCount "71"]
[EventDate "2024.02.06"]
[EventType "swiss"]
[EventCountry "MNE"]
[SourceTitle "playchess.com"]
[Source "ChessBase"]
[SourceQuality "1"]
[TimeControl "40/5400+30:1800+30"]

{[%evp 17,71,25,32,42,35,34,25,25,22,28,20,25,23,30,36,27,26,17,17,25,43,41,27,0,58,47,82,72,101,78,79,104,100,91,88,0,0,0,0,0,0,0,0,0,0,0,0,0,0,0,0,0,0,0,0,0]} 1. d4 {[%emt 0:00:04]} d6 {[%emt 0:00:39]} 2. e4 {[%emt 0:00:15]} Nf6 {[%emt 0:00:08]} 3. Nc3 {[%emt 0:00:06]} e5 {[%emt 0:01:13]} 4. Nf3 {[%emt 0:00:13]} Nbd7 {[%emt 0:00:07]} 5. Bc4 {[%emt 0:00:10]} Be7 {[%emt 0:00:03]} 6. a4 {[%emt 0:00:36]} O-O {[%emt 0:00:08]} 7. O-O {[%emt 0:00:06]} c6 {[%emt 0:00:06]} 8. h3 {[%emt 0:00:27]} h6 {[%emt 0:00:07]} 9. Re1 {[%emt 0:00:28]} Re8 {[%emt 0:00:04]} 10. a5 {[%emt 0:00:45]} Qc7 {[%emt 0:00:22]} 11. Be3 {[%emt 0:06:48]} exd4 {[%emt 0:00:22]} 12. Nxd4 {[%emt 0:01:45] White has an edge.} Bf8 {[%emt 0:00:05]} 13. Bf4 {[%emt 0:01:22] Wards off Re5} Rb8 {[%emt 0:00:26]} 14. Bg3 {[%emt 0:01:10]} b5 {[%emt 0:03:18]} 15. axb6 {[%emt 0:01:01]} axb6 {[%emt 0:00:02]} 16. b4 {[%emt 0:00:51]} b5 {[%emt 0:00:04]} 17. Bb3 {[%emt 0:00:35]} Ne5 {[%emt 0:00:19]} 18. f4 {[%emt 0:01:39]} Ng6 {[%emt 0:00:07]} 19. Qf3 {[%emt 0:09:06][%cal Oe4e5] Threatens to win with e5!} Bd7 {[%emt 0:02:31]} 20. Rab1 {[%emt 0:19:38]} (20. Kh1 {with more complications.} Qb6 21. Bf2 c5 22. bxc5 dxc5 23. Ndxb5 Bxb5 24. Nxb5 Qxb5 25. e5) 20... c5 {[%emt 0:42:01]} (20... Qa7 $11) 21. bxc5 $14 {[%emt 0:04:37]} dxc5 {[%emt 0:48:48] [#]} 22. Ndxb5 {[%emt 0:33:48]} Bxb5 {[%emt 0:00:00]} 23. Nxb5 {[%emt 0:02:26]} Rxb5 {[%emt 0:00:00] [#]} 24. Bxf7+ {[%emt 0:00:18]} Kxf7 {[%emt 0:00:00]} (24... Qxf7 25. Rxb5) 25. Rxb5 {[%emt 0:00:07]} Qc6 {[%emt 0:00:00][%csl LRb5,LRe4] [#]} 26. f5 $1 {[%emt 0:14:30]} Qxb5 $11 {[%emt 0:00:00] The position is equal.} 27. fxg6+ {[%emt 0:00:02]} Kxg6 {[%emt 0:00:00] ...Kh7 is the strong threat.} 28. e5 {[%emt 0:00:16][%cal Oe1f1]} Qc4 {[%emt 0:00:00]} 29. exf6 {[%emt 0:01:18]} Rxe1+ {[%emt 0:00:00]} 30. Bxe1 {[%emt 0:00:03] Bc3 would now be deadly.} Qxc2 {[%emt 0:00:00][%mdl 4096] Endgame. KQB-KQB} 31. Bc3 {[%emt 0:00:45] Hoping for Qg3+.} Qc1+ {[%emt 0:00:00]} 32. Kf2 {[%emt 0:00:40]} Qc2+ {[%emt 0:00:00]} 33. Kf1 {[%emt 0:00:28] And now Qg3+ would win.} Qc1+ {[%emt 0:00:00]} 34. Kf2 {[%emt 0:00:20]} Qc2+ {[%emt 0:00:00]} 35. Kf1 {[%emt 0:00:42]} Qc1+ {[%emt 0:00:00]} 36. Kf2 {[%emt 0:00:07] Weighted Error Value: White=0.07 (flawless) /Black=0.06 (flawless) .  Mistake:       	White=1     	Black=1      Inaccurate:     	White=1     	Black=2      OK:         	White=9     	Black=14     Best:        	White=2     	Black=2      Brilliant:      	White=1     	---} 1/2-1/2

[Event "76th Montenegro Championship 2024"]
[Site "Podgorica"]
[Date "2024.02.09"]
[Round "4.2"]
[White "Sukovic, Andrej"]
[Black "Djukic, Nikola"]
[Result "1/2-1/2"]
[ECO "A36"]
[WhiteElo "2339"]
[BlackElo "2529"]
[Annotator "TA"]
[PlyCount "35"]
[EventDate "2024.02.06"]
[EventType "swiss"]
[EventCountry "MNE"]
[SourceTitle "playchess.com"]
[Source "ChessBase"]
[SourceQuality "1"]
[TimeControl "40/5400+30:1800+30"]

{[%evp 22,35,28,16,29,11,16,14,16,0,5,12,5,5,25,13]} 1. c4 {[%emt 0:00:02]} g6 {[%emt 0:05:14]} 2. g3 {[%emt 0:00:10]} Bg7 {[%emt 0:00:12]} 3. Bg2 {[%emt 0:00:06]} c5 {[%emt 0:00:35]} 4. Nc3 {[%emt 0:00:10]} Nc6 {[%emt 0:00:08]} 5. d3 {[%emt 0:00:06]} Nf6 {[%emt 0:00:07][%cal Bg8f6,Bf6e8,Be8c7,Bc7e6,Be6d4][%mdl 32]} 6. e4 {[%emt 0:07:35]} O-O {[%emt 0:00:24]} 7. Nge2 {[%emt 0:00:05]} d6 {[%emt 0:00:06]} 8. O-O {[%emt 0:01:00]} Ne8 {[%emt 0:02:26]} 9. a3 {[%emt 0:01:52]} Nc7 {[%emt 0:02:02]} 10. Rb1 {[%emt 0:00:15]} a5 {[%emt 0:01:42]} 11. Be3 {[%emt 0:04:52]} Ne6 {[%emt 0:04:15]} 12. Nb5 {[%emt 0:06:44]} Ned4 {[%emt 0:14:15]} 13. a4 {[%emt 0:00:26]} Bg4 {[%emt 0:08:58]} 14. f3 {[%emt 0:01:18]} Bd7 {[%emt 0:00:06]} 15. h3 {[%emt 0:06:35]} Nxe2+ {[%emt 0:09:43]} 16. Qxe2 {[%emt 0:00:12]} Nd4 {[%emt 0:00:05]} 17. Bxd4 {[%emt 0:09:36]} Bxd4+ {[%emt 0:01:34]} 18. Nxd4 {[%emt 0:58:26] Not much happened in this game.   Weighted Error Value: White=0.07 (flawless) /Black=0.03 (flawless) .  OK:         	White=2     	Black=3} 1/2-1/2

[Event "76th Montenegro Championship 2024"]
[Site "Podgorica"]
[Date "2024.02.09"]
[Round "4.3"]
[White "Petrov, Nikita"]
[Black "Nikcevic, Nebojsa"]
[Result "1-0"]
[ECO "D31"]
[WhiteElo "2563"]
[BlackElo "2338"]
[Annotator "TA"]
[PlyCount "55"]
[EventDate "2024.02.06"]
[EventType "swiss"]
[EventCountry "MNE"]
[SourceTitle "playchess.com"]
[Source "ChessBase"]
[SourceQuality "1"]
[TimeControl "40/5400+30:1800+30"]

{[%evp 9,55,17,58,22,35,16,23,31,46,39,46,0,0,0,0,-118,-106,-113,-84,-106,-80,-87,85,89,109,112,118,134,262,113,94,102,102,95,369,360,375,370,383,381,389,339,335,329,424,415,519,556]} 1. d4 {[%emt 0:07:06]} d5 {[%emt 0:00:07]} 2. c4 {[%emt 0:00:15]} e6 {[%emt 0:00:09]} 3. Nc3 {[%emt 0:00:36]} a6 {[%emt 0:00:23]} 4. cxd5 {[%emt 0:01:10]} exd5 {[%emt 0:00:06]} 5. Nf3 {[%emt 0:00:25]} h6 {[%emt 0:03:26]} 6. Bf4 {[%emt 0:01:54]} Nf6 {[%emt 0:00:30]} 7. e3 {[%emt 0:03:13]} Bd6 {[%emt 0:00:20]} 8. Be5 {[%emt 0:00:24] White has an edge.} Be6 {[%emt 0:07:56]} 9. Qb3 {[%emt 0:16:53]} Ra7 {[%emt 0:07:41]} 10. Bxf6 {[%emt 0:19:07]} (10. Bd3 $14 {deserves consideration.}) 10... Qxf6 $11 {[%emt 0:06:43]} 11. Nxd5 {[%emt 0:03:28]} Qd8 {[%emt 0:10:04]} 12. e4 {[%emt 0:05:09]} (12. Bc4 $1 $11 {was the only way to keep the balance.}) 12... c6 $17 {[%emt 0:04:02]} 13. Qb6 {[%emt 0:00:11]} cxd5 {[%emt 0:01:21]} 14. Qxa7 {[%emt 0:37:39]} dxe4 {[%emt 0:25:09]} 15. Nd2 {[%emt 0:00:30]} Nc6 $2 {[%emt 0:11:55]} (15... Qa5 $17 {and life is bright. ...0-0 would now be deadly.} 16. d5 (16. Qxb7 O-O $11) 16... Bxd5) 16. Qxb7 $16 {[%emt 0:00:00]} Nxd4 {[%emt 0:00:07]} 17. Qxe4 {[%emt 0:00:00]} Bb4 {[%emt 0:00:13] Threatens to win with ...Bxd2+.} 18. Bd3 {[%emt 0:00:00][%cal Oa1d1,Bf1d3,Bd3c4,Bc4e6,Be6g4][%mdl 32] Strongly threatening Rd1!} (18. Bxa6 O-O 19. O-O Bf5 $17 (19... Bxd2 20. Rad1 $17)) 18... f5 {[%emt 0:04:30]} (18... Bxd2+ $16 19. Kxd2 f5) 19. Qe3 {[%emt 0:00:00]} (19. Qf4 $1 $18 {and the rest is easy.}) 19... O-O {[%emt 0:01:43]} 20. O-O $1 {[%emt 0:00:00][%cal Bh1f1,Bf1d1,Bd1e1,Be1e8][%mdl 32] Black must now prevent Nb3.} (20. Bxa6 $2 Nc2+ 21. Ke2 Nxe3 $19) 20... f4 {[%emt 0:00:11] [#]} 21. Qe5 {[%emt 0:00:00] Hoping for Rfd1.} ({Don't blunder} 21. Qe1 $2 f3 22. g3 (22. Bxa6 $2 {loses.} fxg2 23. Qe4 gxf1=Q+ 24. Bxf1 Qg5+ 25. Bg2 Qxd2 $19) 22... Bxd2 $19) 21... Bxd2 $4 {[%emt 0:07:41][%mdl 8192] [#] This costs Black the game.} (21... f3 $16 22. Nxf3 Rxf3) 22. Rfd1 $1 $18 {[%emt 0:00:00]} Ba5 {[%emt 0:00:13] [#]} 23. Bc4 $1 {[%emt 0:00:00][%mdl 512]} Bb6 {[%emt 0:03:52]} (23... Bxc4 24. Rxd4) 24. Bxe6+ {[%emt 0:00:00]} Kh8 {[%emt 0:00:03]} 25. Bg4 {[%emt 0:00:00]} Qh4 {[%emt 0:01:17]} 26. Qh5 {[%emt 0:00:00]} Qe7 {[%emt 0:02:24]} 27. Re1 {[%emt 0:00:00] Wards off f3} Qb4 {[%emt 0:01:09]} 28. Re8 {[%emt 0:00:00] Weighted Error Value: White=0.26 (precise) /Black=0.44.  Loses game:     	---       	Black=1      Mistake:       	White=3     	Black=2      OK:         	White=14    	Black=5      Best:        	White=2     	Black=5      Strong:       	White=2     	---} 1-0

[Event "76th Montenegro Championship 2024"]
[Site "Podgorica"]
[Date "2024.02.09"]
[Round "4.4"]
[White "Draskovic, Luka"]
[Black "Drasko, Milan"]
[Result "1-0"]
[ECO "E00"]
[WhiteElo "2481"]
[BlackElo "2339"]
[Annotator "TA"]
[PlyCount "121"]
[EventDate "2024.02.06"]
[EventType "swiss"]
[EventCountry "MNE"]
[SourceTitle "playchess.com"]
[Source "ChessBase"]
[SourceQuality "1"]
[TimeControl "40/5400+30:1800+30"]

{[%evp 22,121,42,19,19,0,-14,-7,0,8,1,0,0,0,0,0,3,8,0,-7,-14,-22,-12,-14,14,0,13,13,40,33,21,33,27,22,20,0,0,0,0,0,0,0,0,0,19,27,24,25,52,31,70,65,100,89,101,41,97,77,161,161,316,295,375,361,385,414,426,429,443,436,422,383,497,486,461,426,537,534,508,509,509,509,452,214,526,526,526,526,526,526,1050,711,1033,891,1163,1049,1325,916,2060,1845,1962,1668]} 1. c4 {[%emt 0:00:11]} e6 {[%emt 0:02:49]} 2. d4 {[%emt 0:00:59]} Nf6 {[%emt 0:00:35]} 3. g3 {[%emt 0:00:41]} Bb4+ {[%emt 0:01:26]} 4. Bd2 {[%emt 0:01:05]} Qe7 {[%emt 0:06:44]} 5. Bg2 {[%emt 0:01:25]} Nc6 {[%emt 0:01:22]} 6. e3 {[%emt 0:00:54]} e5 {[%emt 0:09:14]} 7. d5 {[%emt 0:01:57] E00: Catalan Bogo-Indian (3 g3 Bb4+).} Bxd2+ {[%emt 0:01:20]} 8. Qxd2 {[%emt 0:00:42]} Nb8 {[%emt 0:00:25]} 9. d6 $1 {[%emt 0:01:14][%mdl 4] is now more promising than 9.Nc3.} Qxd6 {[%emt 0:00:58]} 10. Qxd6 {[%emt 0:00:07]} cxd6 {[%emt 0:00:07]} 11. Nc3 {[%emt 0:00:11]} Na6 {[%emt 0:11:57]} 12. Nge2 {[%emt 0:05:44]} Nc7 {[%emt 0:02:22]} 13. O-O-O {[%emt 0:01:57]} Ke7 {[%emt 0:02:03]} 14. h3 {[%emt 0:01:21]} h5 $146 {[%emt 0:05:39]} ({Predecessor:} 14... Rb8 15. g4 b5 16. g5 Nfe8 17. cxb5 Nxb5 18. Nd5+ Kd8 19. f4 Bb7 20. Rhf1 Bxd5 21. Bxd5 {½-½ Antic,D (2455)-Kazakouski,V (2416) EU-Cup 32nd Novi Sad 2016 (5.1)}) 15. Rd2 {[%emt 0:04:30]} Rb8 {[%emt 0:09:12]} 16. Rhd1 {[%emt 0:14:42]} b5 {[%emt 0:02:49]} 17. cxb5 {[%emt 0:02:02]} Nxb5 {[%emt 0:01:22]} 18. Nxb5 {[%emt 0:00:42]} Rxb5 {[%emt 0:00:06]} 19. Rxd6 {[%emt 0:01:40]} Bb7 {[%emt 0:01:38]} (19... Rb6 {simplifies} 20. Rxb6 axb6 21. Kd2 d5) 20. Nc3 {[%emt 0:04:04]} Rc8 {[%emt 0:01:20]} 21. Bxb7 {[%emt 0:00:29]} Rxb7 {[%emt 0:00:06]} 22. f3 {[%emt 0:00:29]} Ne8 {[%emt 0:37:56]} 23. R6d3 {[%emt 0:06:16]} Rc6 {[%emt 0:00:00]} 24. Kb1 {[%emt 0:49:08]} Rg6 {[%emt 0:00:00]} 25. g4 {[%emt 0:00:00]} hxg4 {[%emt 0:00:00]} 26. hxg4 {[%emt 0:00:00]} Rh6 {[%emt 0:00:00]} 27. Nd5+ {[%emt 0:00:00]} Kd8 {[%emt 0:00:00]} 28. e4 {[%emt 0:00:00]} Rh2 {[%emt 0:00:00]} 29. R3d2 {[%emt 0:00:00]} Rh3 {[%emt 0:00:00]} 30. Rd3 {[%emt 0:00:00]} Rh2 {[%emt 0:00:00]} 31. R1d2 {[%emt 0:00:00]} Rh1+ {[%emt 0:00:00]} 32. Kc2 {[%emt 0:00:00]} Nc7 {[%emt 0:00:00]} 33. Nxc7 {[%emt 0:00:00]} Rxc7+ {[%emt 0:00:00]} 34. Kb3 {[%emt 0:00:00]} Ke7 {[%emt 0:00:00]} 35. Ka4 {[%emt 0:00:00]} Rhc1 {[%emt 0:00:00]} 36. b4 {[%emt 0:00:00]} f6 {[%emt 0:00:00]} 37. Ka5 {[%emt 0:00:00]} R1c4 {[%emt 0:00:58]} 38. a4 {[%emt 0:00:00]} ({Better is} 38. b5 $16) 38... Rc1 {[%emt 0:03:34]} (38... a6 $1 $14) 39. Ra2 {[%emt 0:00:00]} R7c6 {[%emt 0:03:21]} (39... a6 $16) 40. b5 $18 {[%emt 0:00:00]} Rc7 $2 {[%emt 0:00:00]} (40... Rb6 {was necessary.} 41. Rh2 Rb8) 41. Ka6 $18 {[%emt 0:00:00]} Rb1 {[%emt 0:08:15]} 42. Raa3 {[%emt 0:00:00]} Rbc1 {[%emt 0:09:21]} 43. a5 {[%emt 0:00:00]} Kd8 {[%emt 0:00:17]} 44. b6 {[%emt 0:03:07]} R1c6 {[%emt 0:05:15]} 45. Ra2 {[%emt 0:05:26]} Re6 {[%emt 0:00:35]} 46. Rad2 {[%emt 0:00:59]} axb6 {[%emt 0:03:12]} 47. axb6 {[%emt 0:00:07]} Ke7 {[%emt 0:00:27]} 48. Rd5 {[%emt 0:01:31]} Rec6 {[%emt 0:01:01]} 49. g5 {[%emt 0:02:20]} Ke6 {[%emt 0:02:19]} 50. g6 {[%emt 0:04:39]} Ke7 {[%emt 0:00:36]} 51. Rh2 {[%emt 0:00:32]} Rc8 {[%emt 0:00:17]} 52. Rh7 {[%emt 0:01:59]} (52. Ka7 $142) 52... Rg8 $2 {[%emt 0:00:51]} (52... Rb8) 53. Ka7 $18 {[%emt 0:01:32]} Rc3 {[%emt 0:01:37]} 54. b7 {[%emt 0:02:39]} Rb3 {[%emt 0:00:33]} 55. Ka6 {[%emt 0:01:47]} f5 {[%emt 0:00:40]} 56. Rxe5+ {[%emt 0:01:32]} Kf6 {[%emt 0:00:05]} 57. Rxf5+ {[%emt 0:02:20]} Kxg6 {[%emt 0:00:08]} 58. Rhh5 {[%emt 0:05:46]} Rb8 {[%emt 0:00:28]} 59. Rhg5+ {[%emt 0:01:15]} Kh6 {[%emt 0:00:10] [#]} 60. Rb5 $1 {[%emt 0:00:34]} Rxb7 {[%emt 0:00:16]} 61. Kxb7 {[%emt 0:00:15]} 1-0

[Event "76th Montenegro Championship 2024"]
[Site "Podgorica"]
[Date "2024.02.09"]
[Round "4.5"]
[White "Pobor, Milo"]
[Black "Skvortsov, Andrei"]
[Result "0-1"]
[ECO "B43"]
[WhiteElo "2201"]
[BlackElo "2307"]
[Annotator "RC"]
[PlyCount "122"]
[EventDate "2024.02.06"]
[EventType "swiss"]
[EventCountry "MNE"]
[SourceTitle "playchess.com"]
[Source "ChessBase"]
[SourceQuality "1"]
[TimeControl "40/5400+30:1800+30"]

1. e4 {[%emt 0:00:01]} c5 {[%emt 0:04:08]} 2. Nf3 {[%emt 0:00:04]} a6 {[%emt 0:00:06]} 3. Nc3 {[%emt 0:00:40]} b5 {[%emt 0:00:05]} 4. d4 {[%emt 0:02:30]} cxd4 {[%emt 0:00:04]} 5. Nxd4 {[%emt 0:00:04]} e6 {[%emt 0:00:35]} 6. Bd3 {[%emt 0:04:53]} Bb7 {[%emt 0:00:31]} 7. O-O {[%emt 0:01:32]} b4 {[%emt 0:02:23]} 8. Nb1 {[%emt 0:09:04]} Qc7 {[%emt 0:01:25]} 9. Qe2 {[%emt 0:05:05]} Nf6 {[%emt 0:06:32]} 10. Bg5 {[%emt 0:10:19]} Bc5 {[%emt 0:03:29]} 11. Nf3 {[%emt 0:02:44]} Nc6 {[%emt 0:03:04]} 12. Nbd2 {[%emt 0:03:43]} h6 {[%emt 0:02:38]} 13. Bh4 {[%emt 0:02:04]} Nh5 {[%emt 0:00:38]} 14. Nc4 {[%emt 0:04:48]} g5 {[%emt 0:02:07]} 15. Bg3 {[%emt 0:06:38]} Nxg3 {[%emt 0:00:29]} 16. hxg3 {[%emt 0:00:04]} Qxg3 {[%emt 0:02:37]} 17. e5 {[%emt 0:00:56]} Qf4 {[%emt 0:12:12]} 18. Qe4 {[%emt 0:01:07]} Qxe4 {[%emt 0:02:21]} 19. Bxe4 {[%emt 0:00:05]} g4 {[%emt 0:00:40]} 20. Nfd2 {[%emt 0:00:21]} d5 {[%emt 0:04:33]} 21. exd6 {[%emt 0:00:43]} g3 {[%emt 0:00:07]} 22. Kh1 {[%emt 0:01:13]} gxf2 {[%emt 0:01:28]} 23. Nb3 {[%emt 0:00:46]} Ba7 {[%emt 0:00:19]} 24. Rad1 {[%emt 0:03:07]} Rd8 {[%emt 0:00:30]} 25. d7+ {[%emt 0:01:10]} Ke7 {[%emt 0:00:09]} 26. Nd6 {[%emt 0:00:06]} Ba8 {[%emt 0:00:40]} 27. Nc8+ {[%emt 0:01:28]} Rxc8 {[%emt 0:00:09]} 28. dxc8=Q {[%emt 0:00:07]} Rxc8 {[%emt 0:50:31]} 29. c3 {[%emt 0:16:15]} bxc3 {[%emt 0:00:00]} 30. bxc3 {[%emt 0:00:54]} Rg8 {[%emt 0:00:00]} 31. Bf3 {[%emt 0:04:22]} Rg5 {[%emt 0:00:00]} 32. g4 {[%emt 0:07:49]} f5 {[%emt 0:00:00]} 33. gxf5 {[%emt 0:01:58]} Rxf5 {[%emt 0:00:00]} 34. Kg2 {[%emt 0:00:25]} Rg5+ {[%emt 0:00:00]} 35. Kh3 {[%emt 0:01:40]} Bb7 {[%emt 0:00:00]} 36. Nc1 {[%emt 0:02:12]} Rf5 {[%emt 0:00:00]} 37. Kg2 {[%emt 0:00:43]} Rc5 {[%emt 0:00:00]} 38. Ne2 {[%emt 0:01:40]} Rg5+ {[%emt 0:00:00]} 39. Kh3 {[%emt 0:00:19]} Re5 {[%emt 0:00:00]} 40. Ng3 {[%emt 0:00:00]} Na5 {[%emt 0:00:00]} 41. Bxb7 {[%emt 0:06:31]} Nxb7 {[%emt 0:00:00]} 42. Rd2 {[%emt 0:02:10]} Nd6 {[%emt 0:00:00]} 43. Rfd1 {[%emt 0:01:16]} Bc5 {[%emt 0:00:00]} 44. Kg4 {[%emt 0:01:27]} Rg5+ {[%emt 0:00:00]} 45. Kf3 {[%emt 0:00:18]} Rxg3+ {[%emt 0:00:00]} 46. Kxg3 {[%emt 0:00:05]} f1=Q {[%emt 0:00:00]} 47. Rxf1 {[%emt 0:00:03]} Ne4+ {[%emt 0:00:00]} 48. Kf4 {[%emt 0:01:55]} Nxd2 {[%emt 0:00:00]} 49. Rh1 {[%emt 0:00:04]} Nc4 {[%emt 0:00:00]} 50. Kf3 {[%emt 0:01:33]} Ne5+ {[%emt 0:00:00]} 51. Ke4 {[%emt 0:00:05]} Nf7 {[%emt 0:00:00]} 52. Rh5 {[%emt 0:00:18]} Nd6+ {[%emt 0:00:00]} 53. Kd3 {[%emt 0:01:17]} Nf5 {[%emt 0:00:00]} 54. Kc4 {[%emt 0:00:34]} Kd6 {[%emt 0:00:00]} 55. Rh1 {[%emt 0:00:13]} Kc6 {[%emt 0:00:00]} 56. Rh5 {[%emt 0:00:19]} Be3 {[%emt 0:00:00]} 57. Rh1 {[%emt 0:00:26]} Bg5 {[%emt 0:00:00]} 58. Rh3 {[%emt 0:00:19]} e5 {[%emt 0:00:00]} 59. Kd3 {[%emt 0:00:14]} Nd6 {[%emt 0:00:00]} 60. Rh1 {[%emt 0:00:32]} e4+ {[%emt 0:00:00]} 61. Kd4 {[%emt 0:00:15]} e3 {[%emt 0:00:00]} 0-1

[Event "76th Montenegro Championship 2024"]
[Site "Podgorica"]
[Date "2024.02.09"]
[Round "4.6"]
[White "Miletic, Vuk"]
[Black "Podlesnik, Bogdan"]
[Result "1/2-1/2"]
[ECO "E29"]
[WhiteElo "2213"]
[BlackElo "2284"]
[Annotator "NA COMBH"]
[PlyCount "52"]
[EventDate "2024.02.06"]
[EventType "swiss"]
[EventCountry "MNE"]
[SourceTitle "playchess.com"]
[Source "ChessBase"]
[SourceQuality "1"]
[TimeControl "40/5400+30:1800+30"]

1. d4 {[%emt 0:01:44]} e6 {[%emt 0:01:28]} 2. c4 {[%emt 0:01:45]} Nf6 {[%emt 0:00:06]} 3. Nc3 {[%emt 0:00:19]} Bb4 {[%emt 0:00:06]} 4. a3 {[%emt 0:00:37]} Bxc3+ {[%emt 0:00:08]} 5. bxc3 {[%emt 0:00:04]} c5 {[%emt 0:00:06]} 6. f3 {[%emt 0:00:33]} O-O {[%emt 0:02:53]} 7. e4 {[%emt 0:00:51]} Ne8 {[%emt 0:00:42]} 8. Bd3 {[%emt 0:18:06]} Nc6 {[%emt 0:03:15]} 9. Ne2 {[%emt 0:02:33]} b6 {[%emt 0:01:04]} 10. O-O {[%emt 0:01:46]} Ba6 {[%emt 0:02:10]} 11. f4 {[%emt 0:00:12]} f5 {[%emt 0:02:01]} 12. exf5 {[%emt 0:00:25]} exf5 {[%emt 0:00:08]} 13. dxc5 {[%emt 0:00:02]} bxc5 {[%emt 0:00:16]} 14. Ng3 {[%emt 0:00:34]} g6 {[%emt 0:01:41]} 15. Be3 {[%emt 0:00:12]} d6 {[%emt 0:01:14]} 16. Re1 {[%emt 0:02:04]} Nf6 {[%emt 0:11:30]} 17. Bf2 {[%emt 0:00:24]} Qa5 {[%emt 0:12:10]} 18. Bxf5 {[%emt 0:39:14]} gxf5 {[%emt 0:06:43]} 19. Qxd6 {[%emt 0:00:08]} Rac8 {[%emt 0:52:19]} 20. Qe6+ {[%emt 0:10:42]} Kh8 {[%emt 0:00:00]} 21. Nxf5 {[%emt 0:00:26]} Qxc3 {[%emt 0:00:00]} 22. Rac1 {[%emt 0:04:10]} Qb2 {[%emt 0:00:00]} 23. Rb1 {[%emt 0:08:17]} Qc3 {[%emt 0:00:00]} 24. Rbc1 {[%emt 0:00:05]} Qb2 {[%emt 0:00:00]} 25. Rb1 {[%emt 0:01:34]} Qc3 {[%emt 0:00:00]} 26. Rbc1 {[%emt 0:06:43]} Qb2 {[%emt 0:03:30]} 1/2-1/2

[Event "76th Montenegro Championship 2024"]
[Site "Podgorica"]
[Date "2024.02.09"]
[Round "4.7"]
[White "Vukcevic, Nemanja"]
[Black "Milovic, Jovan"]
[Result "1-0"]
[ECO "B06"]
[WhiteElo "2275"]
[BlackElo "2223"]
[Annotator "NA RC"]
[PlyCount "63"]
[EventDate "2024.02.06"]
[EventType "swiss"]
[EventCountry "MNE"]
[SourceTitle "playchess.com"]
[Source "ChessBase"]
[SourceQuality "1"]
[TimeControl "40/5400+30:1800+30"]

1. e4 {[%emt 0:00:37]} g6 {[%emt 0:05:12]} 2. d4 {[%emt 0:00:17]} Bg7 {[%emt 0:00:07]} 3. Nf3 {[%emt 0:01:16]} d6 {[%emt 0:00:22]} 4. Bc4 {[%emt 0:01:02]} Nf6 {[%emt 0:00:06]} 5. Qe2 {[%emt 0:00:08]} O-O {[%emt 0:00:06]} 6. e5 {[%emt 0:00:09]} dxe5 {[%emt 0:01:39]} 7. dxe5 {[%emt 0:00:05]} Nd5 {[%emt 0:00:15]} 8. h3 {[%emt 0:01:03]} Nc6 {[%emt 0:01:32]} 9. O-O {[%emt 0:02:34]} Na5 {[%emt 0:06:42]} 10. Bd3 {[%emt 0:06:44]} c5 {[%emt 0:06:03]} 11. Rd1 {[%emt 0:12:15]} Qc7 {[%emt 0:05:12]} 12. Be4 {[%emt 0:04:30]} e6 {[%emt 0:01:19]} 13. Na3 {[%emt 0:07:15]} a6 {[%emt 0:03:35]} 14. c4 {[%emt 0:03:03]} Nb4 {[%emt 0:01:39]} 15. Bf4 {[%emt 0:01:06]} Bd7 {[%emt 0:00:38]} 16. Nc2 {[%emt 0:04:02]} Nbc6 {[%emt 0:01:58]} 17. Rd6 {[%emt 0:04:21]} Be8 {[%emt 0:01:01]} 18. Rad1 {[%emt 0:01:04]} Rb8 {[%emt 0:02:41]} 19. Ne3 {[%emt 0:04:33]} b5 {[%emt 0:00:58]} 20. cxb5 {[%emt 0:07:52]} Rxb5 {[%emt 0:05:16]} 21. Ng4 {[%emt 0:01:46]} Nd4 {[%emt 0:01:30]} 22. Nxd4 {[%emt 0:05:10]} cxd4 {[%emt 0:00:04]} 23. Bd3 {[%emt 0:31:08]} Rb4 {[%emt 0:16:25]} 24. Nf6+ {[%emt 0:00:30]} Bxf6 {[%emt 0:08:18]} 25. exf6 {[%emt 0:00:00]} Nc6 {[%emt 0:10:29]} 26. Bg3 {[%emt 0:00:00]} Qa5 {[%emt 0:02:09]} 27. Qd2 {[%emt 0:00:00]} Kh8 {[%emt 0:00:49]} 28. Rc1 {[%emt 0:00:00]} Rc4 {[%emt 0:00:25]} 29. Qh6 {[%emt 0:00:00]} Rxc1+ {[%emt 0:00:43]} 30. Qxc1 {[%emt 0:00:00]} Nb4 {[%emt 0:06:17]} 31. Qh6 {[%emt 0:00:00]} Rg8 {[%emt 0:00:20]} 32. Rxd4 {[%emt 0:00:00]} 1-0